bitfinex/quotes_ETHUSD_20251028
["timestamp","ask_amount","ask_price","bid_price","bid_amount"]
[1761633252029,1.221,4092.0,4091.9,2.44385248]
[1761633252234,1.221,4092.0,4091.9,2.89755248]
[1761633252538,0.1224,4092.3,4092.2,2.44367332]
[1761633252741,0.001,4092.4,4092.3,2.84911761]
[1761633252938,0.001,4092.4,4092.3,4.00231044]
[1761633253342,0.001,4092.4,4092.3,5.55751044]
[1761633254151,0.001,4092.4,4092.3,5.43511044]
[1761633255426,0.001,4092.4,4092.3,5.02960644]
[1761633255625,1.221,4093.1,4092.8,4.40401908]
[1761633255852,1.221,4093.1,4092.8,5.08876057]
[1761633256054,1.221,4093.1,4092.8,5.54246057]
[1761633257461,1.221,4093.1,4092.8,4.40401908]
[1761633257763,1.221,4093.1,4092.8,3.99851508]
[1761633258385,1.221,4093.1,4092.8,4.45221508]
[1761633258673,1.221,4094.0,4092.8,4.45221508]
[1761633258963,2.4426683,4093.9,4092.8,4.45221508]
[1761633259462,1.221,4094.0,4092.8,4.45221508]
[1761633259967,0.099,4093.5,4092.8,2.44331508]
[1761633260131,0.099,4093.5,4092.7,2.84886233]
[1761633260462,2.54189853,4093.5,4092.7,2.84886718]
[1761633260770,2.54189853,4093.5,4092.1,0.4537]
[1761633260771,2.44297326,4093.4,4092.1,2.0089]
[1761633260926,0.0954,4092.9,4092.7,2.44337048]
[1761633261531,0.0954,4092.9,4092.6,2.44342362]
[1761633261828,0.0954,4092.9,4092.3,1.5552]
[1761633262067,0.1944,4092.9,4092.6,2.44342772]
[1761633262374,0.0954,4092.9,4092.6,2.44342772]
[1761633262540,0.0954,4092.9,4092.5,2.44347853]
[1761633262747,0.0954,4092.9,4092.4,2.44354113]
[1761633263069,0.1944,4092.9,4092.4,2.44353725]
[1761633263267,0.0954,4092.9,4092.4,2.44353725]
[1761633263456,0.0954,4092.9,4092.5,2.44346362]
[1761633263657,0.001,4092.9,4092.7,2.44336263]
[1761633263837,0.001,4092.9,4092.8,2.44331508]
[1761633264166,0.001,4092.9,4092.8,2.56571508]
[1761633264482,0.0954,4092.9,4092.8,0.1224]
[1761633264645,0.0954,4092.9,4092.4,0.1224]
[1761633264962,0.0954,4092.9,4092.0,0.405504]
[1761633264963,0.001,4092.9,4092.8,2.44331508]
[1761633265167,0.001,4092.9,4092.8,2.94423004]
[1761633265336,0.001,4092.9,4092.8,2.44331508]
[1761633266566,0.001,4092.9,4092.8,3.30251908]
[1761633267779,0.001,4092.9,4092.8,0.405504]
[1761633267988,0.001,4092.9,4092.8,2.84881908]
[1761633269173,0.001,4092.9,4092.8,3.30251908]
[1761633269377,0.001,4092.9,4092.8,3.88934653]
[1761633269581,0.001,4092.9,4092.4,0.002]
[1761633269782,0.001,4092.9,4092.6,0.405504]
[1761633270090,0.001,4092.9,4092.8,2.44331508]
[1761633270473,0.001,4092.9,4092.8,2.89701508]
[1761633271348,0.001,4092.9,4092.8,2.44331508]
[1761633273606,0.001,4092.9,4092.8,3.83173679]
[1761633273888,0.001,4092.9,4092.8,5.38693679]
[1761633276966,0.001,4092.9,4092.8,4.93323679]
[1761633277287,0.001,4092.9,4092.8,4.45361508]
[1761633277588,0.001,4092.9,4092.8,4.40401908]
[1761633277998,0.001,4092.9,4092.8,2.84881908]
[1761633279594,0.001,4092.9,4092.8,2.97121908]
[1761633283483,0.001,4092.9,4092.8,0.1224]
[1761633283687,0.001,4092.9,4092.4,0.002]
[1761633283688,0.001,4092.9,4092.6,2.56579411]
[1761633283900,0.001,4092.9,4092.6,0.1224]
[1761633284422,0.001,4092.9,4092.6,2.56583394]
[1761633284619,0.0944,4092.7,4092.6,0.1224]
[1761633284790,0.0944,4092.7,4092.4,0.002]
[1761633284993,0.0944,4092.7,4092.4,2.44553049]
[1761633285324,0.1234,4092.9,4092.4,0.4571]
[1761633285325,0.0954,4092.9,4092.4,0.4571]
[1761633285546,0.0954,4092.9,4092.7,2.44331869]
[1761633285752,0.0954,4092.9,4092.8,2.44331508]
[1761633286502,0.001,4092.9,4092.8,2.44331508]
[1761633287911,0.001,4092.9,4092.4,0.407504]
[1761633288106,0.0954,4092.9,4092.6,2.44338599]
[1761633288438,0.0954,4092.9,4092.7,2.4433203]
[1761633288650,0.0954,4092.9,4092.4,0.407504]
[1761633288831,0.0954,4092.9,4092.6,2.44343425]
[1761633289004,0.0954,4092.9,4092.7,2.44337431]
[1761633289405,0.0954,4092.9,4092.5,0.405504]
[1761633289607,0.0954,4092.9,4092.6,2.44343449]
[1761633289942,0.1944,4092.9,4092.4,0.002]
[1761633290437,0.0954,4092.9,4092.5,2.4434883]
[1761633290843,2.53866178,4092.9,4092.4,0.002]
[1761633291147,0.099,4092.8,4092.4,0.002]
[1761633292604,2.54233171,4092.8,4092.4,0.002]
[1761633292906,0.099,4092.7,4092.4,0.002]
[1761633293305,2.44349419,4092.5,4092.4,0.002]
[1761633293755,2.54249419,4092.5,4092.4,0.002]
[1761633293941,3.47095963,4092.5,4092.4,0.002]
[1761633295351,3.59335963,4092.5,4092.4,0.002]
[1761633297467,5.14855963,4092.5,4092.4,0.002]
[1761633298761,3.59335963,4092.5,4092.4,0.002]
[1761633299072,2.66489419,4092.5,4092.4,0.002]
[1761633302557,3.1901915,4092.5,4092.4,0.002]
[1761633303553,3.88589419,4092.5,4092.4,0.002]
[1761633304052,2.54249419,4092.5,4092.4,0.002]
[1761633304253,3.76349419,4092.5,4092.4,0.002]
[1761633304477,6.09490166,4092.5,4092.4,0.002]
[1761633307276,6.61987386,4092.5,4092.4,0.002]
[1761633307777,5.39887386,4092.5,4092.4,0.002]
[1761633308099,6.61987386,4092.5,4092.4,0.002]
[1761633308373,6.09490166,4092.5,4092.4,0.002]
[1761633308681,4.87390166,4092.5,4092.4,0.002]
[1761633308843,6.09490166,4092.5,4092.4,0.002]
[1761633309256,5.99590166,4092.5,4092.4,0.002]
[1761633309677,4.77490166,4092.5,4092.4,0.002]
[1761633309903,1.221,4092.5,4092.4,0.002]
[1761633310192,1.222,4092.7,4092.4,0.4718]
[1761633311497,1.222,4092.7,4092.4,0.002]
[1761633311802,2.44349419,4092.5,4092.4,0.002]
[1761633312369,1.222,4092.7,4092.4,0.002]
[1761633312567,3.66447841,4092.6,4092.4,0.002]
[1761633312983,1.221,4092.6,4092.4,0.002]
[1761633313296,1.221,4092.6,4092.4,0.4718]
[1761633313460,1.221,4092.6,4092.4,0.76334649]
[1761633313664,1.221,4092.6,4092.4,0.4718]
[1761633313976,1.221,4092.6,4092.5,0.4698]
[1761633314169,0.1224,4092.6,4092.5,0.4698]
[1761633315391,0.1224,4092.6,4092.5,2.91329419]
[1761633315558,0.1224,4092.6,4092.5,3.44919085]
[1761633315763,1.222,4092.7,4092.6,2.44343449]
[1761633316081,1.222,4092.7,4092.6,2.91323449]
[1761633316270,0.001,4092.7,4092.6,2.91323449]
[1761633318586,0.001,4092.7,4092.6,2.93766883]
[1761633318789,0.001,4092.7,4092.6,4.19167639]
[1761633318994,0.001,4092.7,4092.6,3.76173805]
[1761633319176,0.001,4092.7,4092.6,4.16724205]
[1761633320197,0.001,4092.7,4092.6,4.19167639]
[1761633322410,0.001,4092.7,4092.6,4.16724205]
[1761633326168,0.001,4092.7,4092.6,3.29193805]
[1761633326588,0.001,4092.7,4092.6,3.76173805]
[1761633327179,0.001,4092.7,4092.6,2.44343449]
[1761633327588,0.001,4092.7,4092.6,2.91323449]
[1761633329918,0.001,4092.7,4092.5,0.1224]
[1761633330125,0.001,4092.7,4092.6,2.44343449]
[1761633330282,0.001,4092.7,4092.6,3.34317283]
[1761633330483,0.001,4092.7,4092.6,3.92903823]
[1761633338522,0.001,4092.7,4092.6,3.95347257]
[1761633338860,0.001,4092.7,4092.6,3.92903823]
[1761633340225,0.001,4092.7,4092.6,4.05143823]
[1761633340421,0.001,4092.7,4092.6,3.58163823]
[1761633340674,0.001,4092.7,4092.6,4.05043823]
[1761633341638,0.001,4092.7,4092.6,5.63007257]
[1761633341838,0.001,4092.7,4092.6,5.60563823]
[1761633342299,0.001,4092.7,4092.6,6.22453997]
[1761633342796,0.001,4092.7,4092.6,5.91992496]
[1761633343953,0.001,4092.7,4092.6,5.60563823]
[1761633347697,0.001,4092.7,4092.6,10.75885014]
[1761633349291,0.001,4093.2,4093.1,2.84864]
[1761633349292,1e-08,4093.2,4093.1,2.84864]
[1761633349462,1e-08,4093.2,4093.1,8.78906842]
[1761633349664,1e-08,4093.2,4093.1,10.78863706]
[1761633351871,1e-08,4093.2,4093.1,5.63542515]
[1761633352072,1e-08,4093.2,4093.1,10.78863706]
[1761633352367,1e-08,4093.2,4093.1,4.52752115]
[1761633352568,1e-08,4093.2,4093.1,4.93302515]
[1761633355365,1e-08,4093.2,4093.1,2.443136]
[1761633358274,1e-08,4093.2,4093.1,2.445136]
[1761633358675,1e-08,4093.2,4093.1,0.002]
[1761633358907,0.09900001,4093.2,4093.1,2.445136]
[1761633359636,1e-08,4093.2,4093.1,2.445136]
[1761633359798,0.09900001,4093.2,4093.1,0.002]
[1761633360480,0.22140001,4093.2,4093.1,0.002]
[1761633360735,1e-08,4093.2,4093.1,6.76626752]
[1761633360879,1e-08,4093.2,4093.1,6.74183616]
[1761633361321,1e-08,4093.2,4093.1,2.445136]
[1761633362616,1e-08,4093.2,4093.1,6.76626752]
[1761633362819,1e-08,4093.2,4093.1,8.5493294]
[1761633365631,1e-08,4093.2,4093.1,12.5517294]
[1761633366419,1e-08,4093.2,4093.1,14.1069294]
[1761633367710,1e-08,4093.2,4093.1,3.78382924]
[1761633367914,1e-08,4093.2,4093.1,2.85064]
[1761633368600,1e-08,4093.2,4093.1,0.407504]
[1761633368840,1e-08,4093.2,4093.1,0.002]
[1761633369020,1e-08,4093.2,4093.1,2.445136]
[1761633369409,1e-08,4093.2,4093.1,0.002]
[1761633369815,0.09900001,4093.2,4093.1,0.002]
[1761633370503,1e-08,4093.2,4093.1,0.002]
[1761633370703,0.09900001,4093.2,4093.1,0.002]
[1761633373968,0.47529628,4093.2,4093.1,0.002]
[1761633374173,2.54207633,4093.2,4093.1,0.002]
[1761633377737,2.66447633,4093.2,4093.1,0.002]
[1761633378239,3.07198033,4093.2,4093.1,0.002]
[1761633378974,2.94958033,4093.2,4093.1,0.002]
[1761633379176,9.89250468,4093.2,4093.1,0.002]
[1761633379559,10.41814774,4093.2,4093.1,0.002]
[1761633380093,2.44337478,4092.7,4092.6,1e-08]
[1761633380396,8.29527494,4092.7,4092.6,1e-08]
[1761633380571,8.99598034,4092.7,4092.6,1e-08]
[1761633380770,10.13990824,4092.7,4092.6,1e-08]
[1761633380972,9.61460284,4092.7,4092.6,1e-08]
[1761633381796,6.53890268,4092.7,4092.6,1e-08]
[1761633381968,10.9334027,4092.7,4092.6,1e-08]
[1761633382680,3.86050254,4092.7,4092.6,1e-08]
[1761633382882,3.93757464,4092.7,4092.6,1e-08]
[1761633383957,0.19679986,4092.7,4092.6,1e-08]
[1761633384166,1.31879986,4092.7,4092.6,1e-08]
[1761633384393,1.221,4092.7,4092.6,1e-08]
[1761633384572,1.221,4092.7,4092.6,2.4434345]
[1761633385196,1.221,4092.7,4092.6,1e-08]
[1761633385390,1.221,4092.7,4092.6,2.4434345]
[1761633385787,0.0944,4092.9,4092.6,1e-08]
[1761633385962,1.221,4092.7,4092.6,2.4434345]
[1761633386162,1.221,4092.7,4092.6,1e-08]
[1761633386363,1.221,4092.7,4092.6,2.4434345]
[1761633387901,1.221,4092.7,4092.6,1e-08]
[1761633388073,1.221,4092.7,4092.6,2.4434345]
[1761633388908,1.3434,4092.7,4092.6,1e-08]
[1761633389498,1.3434,4092.7,4092.6,2.4434345]
[1761633390207,1e-08,4093.2,4093.1,2.84864]
[1761633390412,1e-08,4093.2,4093.1,9.04424016]
[1761633390709,1e-08,4093.2,4093.1,9.47314016]
[1761633391005,1e-08,4093.2,4093.1,4.74754]
[1761633391203,1e-08,4093.2,4093.1,5.46661529]
[1761633391369,1e-08,4093.2,4093.1,5.89551529]
[1761633391770,1e-08,4093.2,4093.1,5.46661529]
[1761633392113,1e-08,4093.2,4093.1,5.24531529]
[1761633392990,1e-08,4093.2,4093.1,3.69011529]
[1761633394823,1e-08,4093.2,4093.1,4.14961529]
[1761633395122,1e-08,4093.2,4093.1,3.56771529]
[1761633396913,1e-08,4093.2,4093.1,4.02721529]
[1761633397718,1e-08,4093.2,4093.1,3.56771529]
[1761633399629,1e-08,4093.2,4092.6,1e-08]
[1761633399840,0.1224,4093.0,4092.6,2.44342792]
[1761633400131,0.1224,4092.7,4092.6,1e-08]
[1761633401406,0.1224,4092.7,4092.6,2.4434345]
[1761633401605,0.1224,4092.7,4092.6,1e-08]
[1761633403505,0.2214,4092.7,4092.6,1e-08]
[1761633403705,1.28396677,4092.7,4092.6,1e-08]
[1761633403904,3.72734155,4092.7,4092.6,1e-08]
[1761633404232,1.18496677,4092.7,4092.6,1e-08]
[1761633404533,0.1224,4092.7,4092.6,1e-08]
[1761633405102,2.66477478,4092.7,4092.6,1e-08]
[1761633407338,2.56577478,4092.7,4092.6,1e-08]
[1761633407637,0.1224,4092.7,4092.6,1e-08]
[1761633407943,1.3434,4092.7,4092.6,0.45950001]
[1761633408106,1.3434,4092.7,4092.6,1e-08]
[1761633408932,1.3434,4092.7,4092.6,2.4434345]
[1761633409506,1.3434,4092.7,4092.6,2.9029345]
[1761633410559,0.1224,4092.7,4092.6,2.9029345]
[1761633411134,0.1224,4092.7,4092.6,1e-08]
[1761633411985,0.1224,4092.7,4092.6,2.4434345]
[1761633413079,0.1224,4092.7,4092.6,1e-08]
[1761633416867,0.1224,4092.7,4092.6,2.4434345]
[1761633417243,0.1224,4092.7,4092.6,2.9029345]
[1761633417745,0.1224,4092.7,4092.6,3.3084385]
[1761633418277,0.1224,4092.7,4092.6,3.90549718]
[1761633419165,0.1224,4092.7,4092.6,2.8489385]
[1761633419366,0.1224,4092.7,4092.6,3.3084385]
[1761633419704,0.1224,4092.7,4092.6,2.8489385]
[1761633420595,0.1224,4092.7,4092.6,0.40550401]
[1761633420875,0.1224,4092.7,4092.6,1e-08]
[1761633421077,3.05288404,4092.7,4092.6,1e-08]
[1761633421879,0.1224,4092.7,4092.6,1e-08]
[1761633422380,1.3434,4092.7,4092.6,3.3084385]
[1761633422679,0.1224,4093.0,4092.9,2.44322675]
[1761633422882,1.221,4093.1,4092.9,2.44322675]
[1761633422883,1.221,4093.1,4093.0,2.84869969]
[1761633423183,1.221,4093.1,4093.0,0.405504]
[1761633423382,1.221,4093.1,4092.6,1e-08]
[1761633423551,0.1224,4092.9,4092.6,1e-08]
[1761633426085,2.56567018,4092.9,4092.6,1e-08]
[1761633426294,1.221,4092.8,4092.6,1e-08]
[1761633426593,3.66431612,4092.8,4092.6,1e-08]
[1761633427654,2.44337478,4092.7,4092.6,1e-08]
[1761633428265,1.59967161,4092.8,4092.6,1e-08]
[1761633428500,0.1224,4092.7,4092.6,1e-08]
[1761633428878,0.1224,4092.7,4092.6,2.8489385]
[1761633429091,1.221,4092.8,4092.7,2.84887878]
[1761633429259,1.221,4092.8,4092.7,3.30427878]
[1761633430578,1.221,4092.8,4092.7,0.860904]
[1761633430890,1.221,4092.8,4092.6,1e-08]
[1761633433859,0.099,4092.7,4092.6,1e-08]
[1761633434059,2.44337478,4092.7,4092.6,1e-08]
[1761633434375,1.221,4092.8,4092.6,1e-08]
[1761633434376,3.66432562,4092.8,4092.6,1e-08]
[1761633434568,2.44337478,4092.7,4092.6,1e-08]
[1761633434964,2.54237478,4092.7,4092.6,1e-08]
[1761633435182,3.18482229,4092.7,4092.6,1e-08]
[1761633438085,8.34275112,4092.7,4092.6,1e-08]
[1761633438296,10.42496791,4092.7,4092.6,1e-08]
[1761633444204,6.38903908,4092.7,4092.6,1e-08]
[1761633444504,6.48803908,4092.7,4092.6,1e-08]
[1761633448187,6.48903908,4092.7,4092.6,1e-08]
[1761633449594,2.44349419,4092.5,4092.4,0.002]
[1761633449949,6.8116102,4092.5,4092.4,0.002]
[1761633450153,6.9106102,4092.5,4092.4,0.002]
[1761633450447,6.25485292,4092.5,4092.4,0.002]
[1761633451429,12.53478175,4092.5,4092.4,0.002]
[1761633451755,12.63378175,4092.5,4092.4,0.002]
[1761633452495,12.53478175,4092.5,4092.4,0.002]
[1761633452732,12.63378175,4092.5,4092.4,0.002]
[1761633458936,7.37685292,4092.5,4092.4,0.002]
[1761633459100,6.84983613,4092.5,4092.4,0.002]
[1761633459307,7.37538612,4092.5,4092.4,0.002]
[1761633459731,7.49778612,4092.5,4092.4,0.002]
[1761633459945,7.59678612,4092.5,4092.4,0.002]
[1761633460701,12.75471495,4092.5,4092.4,0.002]
[1761633462140,13.41047223,4092.5,4092.4,0.002]
[1761633462299,12.75471495,4092.5,4092.4,0.002]
[1761633465518,13.6346386,4092.5,4092.4,0.002]
[1761633465719,13.73245975,4092.5,4092.4,0.002]
[1761633467010,2.44361361,4092.3,4092.2,1e-08]
[1761633467212,3.85355083,4092.3,4092.2,1e-08]
[1761633467529,3.95255083,4092.3,4092.2,1e-08]
[1761633468831,5.50775083,4092.3,4092.2,1e-08]
[1761633469227,2.44391221,4091.8,4091.7,0.002]
[1761633469408,9.64581154,4091.8,4091.7,0.002]
[1761633469609,10.29376153,4091.8,4091.7,0.002]
[1761633470741,11.51576153,4091.8,4091.7,0.4454]
[1761633471137,11.51576153,4091.8,4091.7,0.002]
[1761633474571,11.51576153,4091.8,4091.7,0.4454]
[1761633480600,11.51576153,4091.8,4091.7,0.002]
[1761633480766,11.51576153,4091.8,4091.7,0.4454]
[1761633480970,4.3138622,4091.8,4091.7,0.4454]
[1761633481387,3.78831221,4091.8,4091.7,0.4454]
[1761633481584,1.3444,4091.8,4091.7,0.4454]
[1761633484118,0.1224,4091.8,4091.7,0.850904]
[1761633486317,0.1224,4091.8,4091.7,3.29487594]
[1761633486504,0.1224,4091.8,4091.7,3.8693712]
[1761633487903,0.001,4091.9,4091.8,2.84941621]
[1761633488107,0.001,4091.9,4091.8,3.27711621]
[1761633489218,0.001,4091.9,4091.8,0.833204]
[1761633489422,0.1234,4091.9,4091.8,0.833204]
[1761633495124,0.1234,4091.9,4091.8,3.82681834]
[1761633495320,1.3444,4091.9,4091.8,3.85125746]
[1761633495636,0.001,4091.9,4091.8,3.82681834]
[1761633498215,0.001,4091.9,4091.8,0.833204]
[1761633502044,4.3018735,4091.9,4091.7,0.002]
[1761633502230,2.44391221,4091.8,4091.7,0.002]
[1761633503584,4.09811221,4091.8,4091.7,0.002]
[1761633503857,4.72169705,4091.8,4091.7,0.002]
[1761633504064,6.42062166,4091.8,4091.7,0.002]
[1761633504267,5.89485797,4091.8,4091.7,0.002]
[1761633504480,6.42064746,4091.8,4091.7,0.002]
[1761633508072,7.07908534,4091.8,4091.7,0.002]
[1761633508256,6.42064746,4091.8,4091.7,0.002]
[1761633508872,6.32164746,4091.8,4091.7,0.002]
[1761633509171,7.54264746,4091.8,4091.7,0.002]
[1761633510834,7.44582631,4091.8,4091.7,0.002]
[1761633511068,6.92003682,4091.8,4091.7,0.002]
[1761633511273,9.52198571,4091.8,4091.7,0.002]
[1761633512474,9.64438571,4091.8,4091.7,0.002]
[1761633513263,8.42238571,4091.8,4091.7,0.002]
[1761633513479,9.64438571,4091.8,4091.7,0.4297]
[1761633513979,9.64438571,4091.8,4091.7,0.002]
[1761633514145,10.85330449,4091.8,4091.7,0.002]
[1761633519460,1.3444,4091.8,4091.7,0.4353]
[1761633519675,3.78831221,4091.8,4091.7,0.4353]
[1761633519976,1.3444,4091.8,4091.7,0.4353]
[1761633520751,3.78831221,4091.8,4091.7,0.4353]
[1761633521249,1.3444,4091.8,4091.7,0.4353]
[1761633521684,0.1224,4091.8,4091.7,0.4353]
[1761633521864,1.3444,4091.8,4091.7,0.4353]
[1761633522726,1.222,4091.8,4091.7,1.12934302]
[1761633523032,0.001,4091.9,4091.8,2.84941621]
[1761633523195,0.001,4091.9,4091.8,3.28271621]
[1761633527133,0.001,4091.9,4091.8,3.40511621]
[1761633530211,0.001,4091.9,4091.8,0.838804]
[1761633530919,0.001,4091.9,4091.8,3.28271621]
[1761633531721,0.001,4091.9,4091.8,3.94156875]
[1761633532786,0.001,4091.9,4091.8,8.24244225]
[1761633533320,0.001,4091.9,4091.8,3.94156875]
[1761633533638,0.001,4091.9,4091.8,13.67764225]
[1761633533801,0.001,4091.9,4091.8,9.79764225]
[1761633534120,0.001,4091.9,4091.8,9.89541797]
[1761633534711,0.001,4091.9,4091.8,13.77541797]
[1761633536827,0.001,4091.9,4091.8,14.84560988]
[1761633537192,0.001,4091.9,4091.8,10.54473638]
[1761633538500,0.001,4091.9,4091.8,10.23044965]
[1761633538703,0.001,4091.9,4091.8,14.53132315]
[1761633538908,0.001,4091.9,4091.8,10.23044965]
[1761633539508,0.001,4091.9,4091.8,9.89541797]
[1761633539929,0.001,4091.9,4091.8,14.19629147]
[1761633540435,0.001,4091.9,4091.8,14.84560988]
[1761633540645,0.001,4092.9,4092.8,2.84881908]
[1761633540862,0.001,4092.9,4092.8,9.01204449]
[1761633541003,0.001,4092.9,4092.8,9.44534449]
[1761633541352,0.001,4092.9,4092.8,10.17842767]
[1761633541846,0.001,4092.9,4092.8,5.87755417]
[1761633542908,0.001,4092.9,4092.8,5.99995417]
[1761633547537,0.001,4092.9,4092.8,5.26687099]
[1761633550541,0.001,4092.9,4092.8,5.26887099]
[1761633555303,0.01,4094.8,4094.5,2.84780464]
[1761633555503,0.01,4094.8,4094.7,2.44218135]
[1761633557079,0.01,4094.8,4094.7,2.84768535]
[1761633558179,0.01,4094.8,4094.7,3.30210716]
[1761633558379,0.01,4094.8,4094.7,3.27768535]
[1761633558581,0.01,4094.8,4094.7,4.36523504]
[1761633560151,0.01,4094.8,4094.7,3.93523504]
[1761633560438,0.01,4094.8,4094.7,3.27768535]
[1761633561743,0.01,4094.8,4093.9,3.99779982]
[1761633561744,0.109,4094.8,4093.9,1.5552]
[1761633561905,0.01,4094.8,4094.7,2.84768535]
[1761633563337,0.00798398,4094.8,4094.7,0.405504]
[1761633563538,0.00798398,4094.8,4094.7,2.84768535]
[1761633563708,0.00798398,4094.8,4094.7,0.405504]
[1761633563911,0.00798398,4094.8,4094.7,2.84768535]
[1761633564527,0.00798398,4094.8,4094.7,3.37668322]
[1761633565311,0.00798398,4094.8,4094.7,3.49908322]
[1761633565904,0.00798398,4094.8,4094.7,0.527904]
[1761633566118,0.00798398,4094.8,4094.7,0.405504]
[1761633566321,0.10698398,4094.8,4094.7,0.405504]
[1761633566756,0.00798398,4094.8,4094.7,0.405504]
[1761633568239,0.10698398,4094.8,4094.7,0.405504]
[1761633568454,0.00798398,4094.8,4094.7,2.84768535]
[1761633568653,0.00898398,4094.8,4094.7,2.84768535]
[1761633569344,0.00898398,4094.8,4094.7,0.405504]
[1761633570166,0.00898398,4094.8,4094.7,2.84768535]
[1761633570336,0.00898398,4094.8,4094.7,3.34768535]
[1761633572063,0.00898398,4094.8,4094.7,0.905504]
[1761633573237,0.10798398,4094.8,4094.7,0.905504]
[1761633573438,1.22898398,4094.8,4094.7,3.34768535]
[1761633576981,1.22898398,4094.8,4094.7,3.91858535]
[1761633577170,1.22898398,4094.8,4094.7,4.55467329]
[1761633577739,1.22898398,4094.8,4094.7,4.10617329]
[1761633578115,1.22898398,4094.8,4094.7,3.34768535]
[1761633579307,1.22898398,4094.8,4094.7,3.79618535]
[1761633580407,0.00898398,4094.8,4094.7,5.35138535]
[1761633580787,0.00898398,4094.8,4094.7,10.5068963]
[1761633581013,0.00898398,4094.8,4094.7,12.046047]
[1761633583126,0.001,4095.3,4095.2,2.84738718]
[1761633583288,0.001,4095.3,4095.2,3.29588718]
[1761633585240,0.001,4095.3,4095.2,4.40258718]
[1761633585381,0.001,4095.3,4095.2,5.11003185]
[1761633585583,0.001,4095.3,4095.2,5.55853185]
[1761633589986,0.001,4095.3,4095.2,5.11003185]
[1761633590186,0.001,4095.3,4095.2,5.55853185]
[1761633590412,0.001,4095.3,4095.2,5.68093185]
[1761633591303,0.001,4095.3,4095.2,3.67723185]
[1761633593316,0.001,4095.3,4095.2,2.96978718]
[1761633594089,0.001,4095.3,4095.2,2.84738718]
[1761633594289,0.001,4095.3,4095.2,3.41828718]
[1761633595822,0.001,4095.3,4095.2,4.97348718]
[1761633597906,0.001,4095.3,4095.2,4.52498718]
[1761633599302,0.001,4095.3,4095.2,5.22168169]
[1761633599534,0.001,4095.3,4095.2,4.52498718]
[1761633600130,0.001,4095.3,4095.2,4.97348718]
[1761633601596,0.001,4095.3,4095.2,10.12899813]
[1761633602341,0.001,4095.3,4095.2,4.52498718]
[1761633603532,0.001,4095.3,4095.2,2.44188318]
[1761633603699,0.001,4095.3,4095.2,2.84738718]
[1761633604238,0.001,4095.3,4095.2,0.405504]
[1761633604742,0.001,4095.3,4095.2,2.84738718]
[1761633605049,0.1,4095.3,4095.2,2.84738718]
[1761633605408,0.1,4095.3,4095.2,0.405504]
[1761633605610,0.1,4095.3,4095.0,0.1224]
[1761633605944,0.1224,4095.1,4094.8,0.405504]
[1761633606244,0.1224,4095.1,4094.8,0.407504]
[1761633606434,0.1224,4095.1,4094.8,2.84961398]
[1761633607034,0.2214,4095.1,4094.8,0.407504]
[1761633607245,0.099,4095.0,4094.8,0.002]
[1761633607650,0.1224,4095.1,4094.8,0.002]
[1761633608226,0.1224,4095.1,4094.9,2.8475619]
[1761633608612,0.1224,4095.1,4094.9,0.405504]
[1761633609349,0.1224,4095.1,4094.8,0.407504]
[1761633609550,1.22,4095.0,4094.8,0.002]
[1761633610052,1.22,4095.0,4094.9,0.405504]
[1761633611255,1.22,4095.0,4094.8,2.84961301]
[1761633611938,0.1224,4095.1,4094.9,0.405504]
[1761633612150,1.22,4095.1,4095.0,0.1224]
[1761633612352,0.001,4095.3,4095.1,0.405504]
[1761633612653,0.001,4095.3,4095.2,2.84738718]
[1761633612832,1.221,4095.3,4095.2,2.84738718]
[1761633616148,1.221,4095.3,4095.2,3.30928718]
[1761633616459,1.221,4095.3,4095.2,3.42251586]
[1761633616628,0.001,4095.3,4095.2,3.88441586]
[1761633617639,0.001,4095.3,4095.2,3.42251586]
[1761633617848,0.1,4095.3,4095.2,0.405504]
[1761633618247,0.1,4095.3,4094.9,0.405504]
[1761633618451,0.2224,4095.3,4094.9,0.405504]
[1761633619227,0.099,4095.2,4094.8,2.84962319]
[1761633619647,0.099,4095.2,4095.0,0.405504]
[1761633620556,0.099,4095.2,4095.0,2.44199272]
[1761633620753,0.1234,4095.3,4095.0,2.44199272]
[1761633620961,0.2224,4095.3,4095.0,0.405504]
[1761633621664,0.2224,4095.3,4094.8,0.002]
[1761633621856,0.099,4095.2,4094.8,0.002]
[1761633622057,0.1224,4094.9,4094.8,0.002]
[1761633622650,0.1224,4094.9,4094.8,2.44412171]
[1761633626643,0.1224,4094.9,4094.8,0.002]
[1761633627067,1.3424,4094.9,4094.8,2.44412171]
[1761633628565,0.1224,4094.9,4094.8,2.44412171]
[1761633628769,1.22,4095.1,4094.9,0.405504]
[1761633629377,1.22,4095.1,4095.0,0.405504]
[1761633629882,1.22,4095.1,4094.9,0.405504]
[1761633631584,1.22,4095.1,4094.8,0.002]
[1761633631898,1.319,4095.1,4094.9,0.405504]
[1761633632098,1.319,4095.1,4094.8,0.407504]
[1761633632587,1.22,4095.1,4094.9,0.405504]
[1761633632763,1.22,4095.1,4094.9,2.84756199]
[1761633633286,1.22,4095.1,4094.9,2.84755081]
[1761633634190,1.22,4095.1,4094.9,0.405504]
[1761633634398,1.22,4095.1,4094.8,0.002]
[1761633635059,1.22,4095.1,4094.8,0.407504]
[1761633635991,3.66195999,4095.1,4094.8,0.002]
[1761633636179,0.1224,4094.9,4094.8,0.002]
[1761633637294,0.1224,4094.9,4094.8,2.84962571]
[1761633637670,1.3424,4095.1,4094.8,1.37938609]
[1761633637872,1.3424,4095.1,4094.9,2.44206207]
[1761633638776,1.3424,4095.1,4094.8,0.002]